Cogmind - Beta 13 @@@ ROGUE MODE // 2024.06.13 @ 23:26:58 Player: wojo Result: Destroyed by D-53 Grenadier with Mini Grenade Launcher Performance ------------- Evolutions (0) 0 Regions Visited (2) 400 Robots Destroyed (13) 65 Value Destroyed (176) 176 Prototype IDs (2) 40 Alien Tech Used (0) 0 Bonus (-23) -23 TOTAL SCORE: 658 Bonus ------- Friendly Fire -23 Cogmind --------- Core Integrity 0/250 Matter 274/300 Energy 55/250 System Corruption 0% Temperature Cool (87) Movement Core (250) Ox4 Location -10/Mines Parts ------- > --- POWER (1) -------- Ion Engine > --- PROPULSION (2) --- (None) > --- UTILITY (2) ------ Signal Interpreter Advanced Targeting Computer > --- WEAPON (2) ------- Assault Cannon Rocket Launcher > --- INVENTORY (5) ---- Improved Heat Sink Scythe Peak State ------------ > --- POWER ------------ Light Angular Momentum Engine > --- PROPULSION ------- Aluminum Leg Carbon-fiber Leg > --- UTILITY ---------- Signal Interpreter Advanced Targeting Computer > --- WEAPON ----------- Particle Gun Beamcaster > --- INVENTORY -------- Ion Engine Improved Heat Sink Assault Cannon Rocket Launcher Scythe [Rating: 21] Favorites ----------- Power Ion Engine Engine Ion Engine Propulsion Light Treads Treads Light Treads Leg Carbon-fiber Leg Flight Unit Flight Unit Utility Signal Interpreter Device Improved Terrain Scanner Processor Signal Interpreter Protection Weapon Shielding Weapon Light Assault Rifle Energy Gun Beamcaster Ballistic Gun Light Assault Rifle Ballistic Cannon Assault Cannon Launcher Rocket Launcher Build | -11 -10 -10 ------- Run | Yrd Mat Min Slots Evolved . | . . . Power . | . . . Propulsion . | . . . Utility . | . . . Weapon . | . . . Parts Attached 22 | 6 4 12 Power 4 | 1 . 3 Engine 4 | 1 . 3 Core . | . . . Reactor . | . . . Propulsion 6 | 2 2 2 Treads 2 | 2 . . Leg 2 | . . 2 Wheel . | . . . Hover . | . . . Flight 2 | . 2 . Utility 4 | 1 2 1 Device 1 | 1 . . Storage . | . . . Processor 2 | . 1 1 Hackware . | . . . Protection 1 | . 1 . Artifact . | . . . Weapon 8 | 2 . 6 Energy Gun 2 | . . 2 Energy Cannon . | . . . Ballistic Gun 3 | 2 . 1 Ballistic Cannon 1 | . . 1 Launcher 2 | . . 2 Special Weapon . | . . . Impact Weapon . | . . . Slashing Weapon . | . . . Piercing Weapon . | . . . Special Melee Weapon . | . . . Unidentified Prototypes . | . . . Parts Lost 5 | . . 5 Power 1 | . . 1 Propulsion 2 | . . 2 Utility . | . . . Weapon 2 | . . 2 Highest Loss Streak 5 | . . 5 To Critical Strikes . | . . . Average Slot Usage (%) 97 | . 98 95 Engine 14 | . 14 14 Treads 7 | . 18 . Leg 12 | . . 20 Flight 7 | . 9 6 Device 8 | . 14 4 Processor 17 | . 9 22 Protection 1 | . 3 . Energy Gun 12 | . . 20 Ballistic Gun 11 | . 28 1 Launcher 1 | . . 3 Naked Turns . | . . . Heaviest Build 18 | 8 9 18 Greatest Support 40 | 40 40 25 Greatest Overweight (x) 2 | 2 1 1 Average Overweight (x) . | . . . Largest Inventory Capacity 5 | 5 5 5 Average Capacity 5 | 5 5 5 Most Carried 5 | 3 5 5 Average Carried 3 | 1 2 4 Final Capacity 5 | 5 5 5 Final Carried 5 | 2 5 2 Class Distribution -------------------- 60% | Scavenger-Mutant 39% | Mutant Dominant Class ---------------- Mutant | -10/Materials Scavenger-Mutant | -10/Mines Resources | -11 -10 -10 ----------- Run | Yrd Mat Min Matter Collected 491 | 282 44 165 Remotely . | . . . Salvage Created 282 | 107 70 105 Parts 21 | 3 10 8 Haulers Intercepted . | . . . Recyclers Shooed 2 | . . 2 Parts Field Recycled . | . . . Retrieved Matter . | . . . Parts Self-Destructed . | . . . Prevented . | . . . Kills | -11 -10 -10 ------- Run | Yrd Mat Min Combat Hostiles Destroyed 9 | . 3 6 Guns 4 | . 3 1 AOE 5 | . . 5 Classes Destroyed 8 | 2 2 4 Worker 1 | . . 1 Builder 1 | . . 1 Tunneler 1 | 1 . . Recycler 1 | 1 . . Watcher 1 | . 1 . Swarmer 6 | . 3 3 Grunt 2 | . . 2 Assembled 1 | . . 1 Best Kill Streak 6 | 2 3 6 Combat Bots Only 4 | . 3 4 Max Kills in Single Turn 2 | 1 2 2 Gunslinging 1 | . 1 . Exploded 2 | . . 2 Melee . | . . . Uniques/NPCs Destroyed . | . . . Combat | -11 -10 -10 -------- Run | Yrd Mat Min Hostile Shots Fired 46 | . 11 35 Missed 17 | . 6 11 Damage Taken 746 | . 39 707 Core 267 | . 8 259 Absorbed by Shields . | . . . Core Remaining (%) 100 | 100 . . Volleys Fired 32 | 11 6 15 Largest 2 | 2 2 2 Hottest 140 | 40 40 140 Shots Fired 54 | 22 12 20 Gun 46 | 22 12 12 Cannon . | . . . Launcher 8 | . . 8 Special . | . . . Kinetic 36 | 22 12 2 Thermal 10 | . . 10 Explosive 8 | . . 8 Electromagnetic . | . . . Robot Hit Streak 11 | 11 5 3 Robot Miss Streak 5 | 1 2 5 Penetration Max . | . . . Secondary Targets 2 | . 1 1 Max Gunslinging Chain 1 | . 1 1 Shots Hit Robots 34 | 18 8 8 Core Hits 25 | 5 7 13 Critical Kills . | . . . Critical Parts Destroyed . | . . . Critical Strikes 1 | . . 1 Burn 1 | . . 1 Melee Attacks . | . . . Impact . | . . . Slashing . | . . . Piercing . | . . . Sneak Attacks . | . . . Combat Hostiles . | . . . Follow-up Attacks . | . . . Damage Inflicted 778 | 153 60 565 Guns 323 | 153 60 110 Cannons . | . . . Explosions 443 | . . 443 Melee . | . . . Ramming 12 | . . 12 Kinetic 213 | 153 60 . Thermal 110 | . . 110 Explosive 443 | . . 443 Electromagnetic . | . . . Impact . | . . . Slashing . | . . . Piercing . | . . . Highest Corruption . | . . . Average Corruption . | . . . Corruption Purged . | . . . Corruption Blocked . | . . . Overload Shots . | . . . Overflow Damage 58 | . . 58 Projectiles . | . . . Explosions 58 | . . 58 Melee . | . . . Knockbacks 1 | . . 1 Impact 1 | . . 1 Kinetic . | . . . Secondary . | . . . Self-Inflicted Damage 20 | . . 20 Shots 1 | . . 1 Rammed . | . . . Targets Rammed 1 | . . 1 Kicked 1 | . . 1 Crushed . | . . . Highest Temperature 220 | . 8 220 Average Temperature 88 | . 5 97 Received Heat Transfer 20 | . . 20 Siege Activations . | . . . Robots Corrupted . | . . . Combat Hostiles . | . . . Parts Fried . | . . . Impact Corruptions . | . . . Robots Melted . | . . . Combat Hostiles . | . . . Parts Melted . | . . . Heat Transferred 296 | . . 296 Parts Sabotaged . | . . . Parts Stolen . | . . . Parts Stripped . | . . . Power Chain Reactions . | . . . Alert | -11 -10 -10 ------- Run | Yrd Mat Min Peak Influence 260 | 10 140 260 Initial 54 | . 6 54 Average 136 | 4 58 224 Maximum Alert Level 1 | . . 1 Low Security (%) 57 | 100 100 18 Level 1 42 | . . 81 Level 2 . | . . . Level 3 . | . . . Level 4 . | . . . Level 5 . | . . . High Security . | . . . Max Security . | . . . Squads Dispatched 1 | . 1 . Investigation 1 | . 1 . Extermination . | . . . Reinforcement . | . . . Assault . | . . . Garrison . | . . . Intercept . | . . . Searches Triggered . | . . . Construction Impeded . | . . . Haulers Reinforced . | . . . Active Scanning Responses . | . . . Cargo Convoy Interrupts . | . . . Stealth | -11 -10 -10 --------- Run | Yrd Mat Min Distress Signals . | . . . Communications Jammed . | . . . Distress Signals . | . . . Times Spotted 25 | . 6 19 Peak Tracking Total 7 | . 3 7 Tactical Retreats 1 | . . 1 Traps | -11 -10 -10 ------- Run | Yrd Mat Min Traps Triggered . | . . . Indirectly . | . . . Trap Hack Attempts . | . . . Triggered . | . . . Disarmed . | . . . Reprogrammed . | . . . Reused . | . . . Traps Extracted . | . . . Installed . | . . . Triggered . | . . . Machines | -11 -10 -10 ---------- Run | Yrd Mat Min Machines Disabled . | . . . Max in Single Turn . | . . . Machines Repaired . | . . . Machines Dismantled . | . . . Machines Sabotaged . | . . . Overloaded Fab Kills . | . . . Hacking | -11 -10 -10 --------- Run | Yrd Mat Min Machines Accessed 7 | . 6 1 Terminals 4 | . 4 . Fabricators . | . . . Repair Stations . | . . . Recycling Units 2 | . 2 . Scanalyzers . | . . . Garrison Access . | . . . Total Hacks 18 | . 17 1 Successful 10 | . 9 1 Failed 8 | . 8 . Catastrophic 1 | . 1 . Database Lockouts . | . . . Manual . | . . . Terminals 15 | . 15 . Fabricators . | . . . Repair Stations . | . . . Recycling Units 2 | . 2 . Scanalyzers . | . . . Garrison Access . | . . . Terminal Hacks 8 | . 7 1 Prototype ID Bank 1 | . 1 . Open Door 1 | . . 1 Branch Access Points 1 | . 1 . Alert Level 1 | . 1 . Locate Traps 1 | . 1 . Transport Status 1 | . 1 . Registered Components 1 | . 1 . Zone Layout 1 | . 1 . Fabricator Hacks . | . . . Repair Station Hacks . | . . . Recycling Unit Hacks 2 | . 2 . Report Inventory 2 | . 2 . Scanalyzer . | . . . Garrison Access Hacks . | . . . Unauthorized Hacks . | . . . Terminals . | . . . Fabricators . | . . . Repair Stations . | . . . Recycling Units . | . . . Scanalyzers . | . . . Garrison Access . | . . . Data Cores Recovered . | . . . Used . | . . . Hacking Detections 5 | . 5 . Full Trace Events 3 | . 3 . Feedback Events . | . . . Feedback Blocked . | . . . Robot Schematics Acquired . | . . . Robots Built . | . . . Authchips . | . . . Time . | . . . Total Robot Build Rating . | . . . Part Schematics Acquired . | . . . Parts Built . | . . . Authchips . | . . . Time . | . . . Total Part Build Rating . | . . . Parts Repaired . | . . . Time . | . . . Parts Recycled . | . . . Recycled Matter . | . . . Retrieved Matter . | . . . Retrieved Components . | . . . Parts Scanalyzed . | . . . Part Schematics Acquired . | . . . Parts Damaged . | . . . Bothacking | -11 -10 -10 ------------ Run | Yrd Mat Min Used RIF Installer . | . . . Robots Hacked . | . . . Non-combat . | . . . Combat . | . . . Robot Hacks Applied . | . . . Relay Couplers Released . | . . . Fabnet Peak Effective % . | . . . Robots Rewired . | . . . Allies Hacked . | . . . Hacks Repelled . | . . . Allies | -11 -10 -10 -------- Run | Yrd Mat Min Total Allies . | . . . Largest Group . | . . . Highest-Rated Group . | . . . Highest-Rated Ally . | . . . Total Orders . | . . . Ally Attacks . | . . . Total Damage . | . . . Kills . | . . . Allies Corrupted . | . . . Allies Melted . | . . . Intel | -11 -10 -10 ------- Run | Yrd Mat Min Robot Analysis Total . | . . . Derelict Logs Recovered 1 | . . 1 Drone Launches . | . . . Drone Recoveries . | . . . Exploration | -11 -10 -10 ------------- Run | Yrd Mat Min Turns Passed 728 | 110 241 377 Spaces Moved 641 | 51 261 329 Core 16 | 16 . . Treads 121 | 35 86 . Legs 212 | . . 212 Wheels . | . . . Hover . | . . . Flight 292 | . 175 117 Fastest Speed 37 | 50 37 37 Average Speed 90 | 139 78 91 Slowest Speed 190 | 160 160 190 Overloaded Moves . | . . . Propulsion Burnouts . | . . . Robots Hopped . | . . . Cave-ins Triggered . | . . . Exploration Rate (%) 37 | 4 48 59 Regions Visited 2 Branch Regions 1 Pre-discovered Areas 1 | . . 1 Known Exits Taken 1 | . 1 . Unknown Exits Taken 1 | 1 . . Scrap Searched 1 | . . 1 Spaces Dug . | . . . Terrain Destroyed 83 | . . 83 Melee . | . . . Projectile . | . . . AOE 83 | . . 83 Terrain Rammed . | . . . Walls Destroyed . | . . . Machines Disabled . | . . . Actions | -11 -10 -10 --------- Run | Yrd Mat Min Total 743 | 71 287 385 Wait 23 | . 9 14 Move 639 | 50 260 329 Hop . | . . . Pick Up 12 | 4 4 4 Fast Attach 13 | 4 4 5 Attach 6 | 2 . 4 Detach . | . . . Swap 3 | . . 3 Drop 14 | . 4 10 Fire 32 | 11 6 15 Melee . | . . . Ram . | . . . Kick 1 | . . 1 Crush . | . . . Escape Stasis . | . . . Rewire . | . . . Trap . | . . . Miscellaneous . | . . . Route ------- -11/Scrapyard -10/Materials (discovered 3 exits: *Mat / *Min x2) -10/Mines (discovered 2 exits: *Mat x2) History --------- Turn | Location | Event 14 | -11/Scrapyard | Discovered new exit (range 15) 111 | -11/Scrapyard | Entered Materials 305 | -10/Materials | Discovered new exit (range 8) 317 | -10/Materials | Identified exit to Mines 352 | -10/Materials | Entered Mines 359 | -10/Mines | Received a Rocket Launcher from a helpful Derelict 369 | -10/Mines | Found a hidden stash of uninstalled traps 372 | -10/Mines | Learned location of Zion (-7) 373 | -10/Mines | Discovered new exit (range 10) 398 | -10/Mines | Discovered new exit (range 12) 403 | -10/Mines | Met a Derelict who couldn't figure out how to use a Trap Extractor 466 | -10/Mines | Identified exit to Materials 574 | -10/Mines | Build established: Scavenger-Mutant 672 | -10/Mines | Assembled infested the area 722 | -10/Mines | Core integrity fell below 50% 726 | -10/Mines | Core integrity fell below 20% 729 | -10/Mines | Destroyed by D-53 Grenadier with Mini Grenade Launcher Last Messages --------------- 00700_ as-27402 destroyed. 00700_ Switching to secondary target: as-27908. 00702_ as-77357 destroyed. 00702_ as-74141 destroyed. 00702_ as-27908 destroyed. 00702_ as-08296 destroyed. 00704_ as-03351 destroyed. 00704_ as-61892 destroyed. 00704_ as-79875 destroyed. 00704_ Acquired 4 matter. 00709_ K-01 Serf collects debris. 00713_ Kicked as-94267. 00713_ as-94267 knocked back. 00715_ Acquired 13 matter. 00717_ as-94267 destroyed. 00719_ Aluminum Leg destroyed. 00719_ Carbon-fiber Leg destroyed. 00723_ Lgt. Angular Momentum Engine destroyed. 00723_ Particle Gun destroyed. 00727_ Beamcaster destroyed. Map ----- +----------------------------------------------------+ | | | | | | | | | | | | | | | | | | | | | ???????????????????????????????????????????? | | ???????????????????????????????????????????? | | ???????????????????????????????????????????? | | ????????????????????????????#??????????????? | | ?????????????????????????### ????????????? | | ????????????????????????# ?????????????? | | ???????????????????????# ??????????????? | | ?????????????????####?# #??????????????? | | ????????????????? ## #???????????????? | | ????????????????? #???????????????? | | ????????????????## ????????????????? | | ????????????##### ?????????????????? | | ????????????? #??????????????????? | | ??????????????# #??????????????????? | | ??????????????# #??????????????????? | | ??????????????# @ #??????????????????? | | ??????????????# #??????????????????? | | ??????????????# #??????????????????? | | ??????????????## ##??????????????????? | | ?????????## ## d ##???????????????????? | | ???????# #????????????????????? | | ?????????####### % ###????????????????????? | | ??????????????? d #####???????????????????? | | ??????????????# ## #???????????????????? | | ??????????????## #???????????????????? | | ???????????????## ##??????????????????? | | ????????????????### % #??????????????????? | | ??????????????????# #?###??????????????? | | ??????????????????# ## ??????????????? | | ??????????????????# ### #??????????????? | | ??????????????????# # ## #??????????????? | | ??????????????????# # #??????????????? | | ????????????????## # ###????????????? | | ????????????????# #????????????? | | ????????????# % #????????????? | | ???????? ## #????????????? | | ???????###### ### # ##### ###?????####?? | | ????????????#??? ###?### ##???## ##? | | ????????????????# #??## #???# ## | | ????????????????#### ##?## #???# # | +----------------------------------------------------+ Best States ------------- Heat Dissipation 25 Energy Generation 18 Energy Capacity 250 Matter Stores 300 Matter Capacity 300 Sight Range 16 Terrain Scan Range 16 Terrain Scan Density 10 Weapon Shielding 33 Evasion (%) 62 Targeting Accuracy 8 Recoil Reduction 2 Item Schematics ----------------- None Robot Schematics ------------------ None Fabricated ------------ Nothing Alien Tech Used ----------------- None Achievements -------------- None Challenges ------------ None Game ------ Seed WeightLatentAutobeam Manual? 0 Play Time 00:13:22 Cumulative 31.7 hours Start 2024.06.13 @ 23:14:04 End 2024.06.13 @ 23:26:58 Sessions 1 Manual Loads 0 Difficulty Rogue Special Mode None Game No. 54 Rogue 54 Adventurer 0 Explorer 0 Win Type - Total 0 Types 0/0/0/0/0/0/0/0/0 Lore% 22 Gallery% 28 Achievement% 21 Wizard Run 0 Options --------- Layout 1 ASCII 0 Keyboard 0 Movement Arrows Keybinds 0 Fullscreen 1 Font 16/SmallcapsGlow Map View 50x40 Zoom Use 0% Tactical HUD 1 Map Filters NONE Filters NONE Steam SD RUN: d39f8552-165f-4b72-b8f8-57656ce9e00a